[Event "*** Titled Tuesday Blitz"]
[Site "Chess.com"]
[Date "2020.11.03"]
[Round "8"]
[White "enriquetejedor"]
[Black "GMKrikor"]
[Result "0-1"]
[WhiteElo "2501"]
[BlackElo "2771"]
[TimeControl "180+1"]
[EndTime "11:33:37 PST"]
[Termination "GMKrikor won on time"]

1. e4 {[%clk 0:03:00.9]} 1... c5 {[%clk 0:02:58.5]} 2. Nf3 {[%clk 0:03:00.8]}
2... d6 {[%clk 0:02:58.9]} 3. c3 {[%clk 0:03:00.2]} 3... Nf6 {[%clk 0:02:58.7]}
4. Bd3 {[%clk 0:02:57.3]} 4... Nc6 {[%clk 0:02:54.6]} 5. h3 {[%clk 0:02:51.6]}
5... d5 {[%clk 0:02:54.4]} 6. e5 {[%clk 0:02:28.8]} 6... c4 {[%clk 0:02:53.9]}
7. exf6 {[%clk 0:01:58.4]} 7... cxd3 {[%clk 0:02:53.7]} 8. fxe7 {[%clk
0:01:53.3]} 8... Qxe7+ {[%clk 0:02:45.3]} 9. Kf1 {[%clk 0:01:53]} 9... Bf5
{[%clk 0:02:46]} 10. b3 {[%clk 0:01:51.1]} 10... O-O-O {[%clk 0:02:45]} 11. Ba3
{[%clk 0:01:49.1]} 11... Qf6 {[%clk 0:01:59.9]} 12. Bxf8 {[%clk 0:01:47.9]}
12... Rhxf8 {[%clk 0:02:00.8]} 13. Na3 {[%clk 0:01:45.9]} 13... Rfe8 {[%clk
0:01:40.8]} 14. Nb5 {[%clk 0:01:45.4]} 14... Re2 {[%clk 0:01:40.4]} 15. Nbd4
{[%clk 0:01:39.5]} 15... Nxd4 {[%clk 0:01:39.5]} 16. Nxd4 {[%clk 0:01:39.7]}
16... Rde8 {[%clk 0:01:38.8]} 17. Kg1 {[%clk 0:01:33.4]} 17... Bxh3 {[%clk
0:00:40]} 18. Nxe2 {[%clk 0:01:19.3]} 18... Rxe2 {[%clk 0:00:31.9]} 19. Qf1
{[%clk 0:01:15.3]} 19... Bf5 {[%clk 0:00:27]} 20. Rd1 {[%clk 0:01:10.9]} 20...
Qg5 {[%clk 0:00:23.6]} 21. c4 {[%clk 0:00:53.7]} 21... dxc4 {[%clk 0:00:17]} 22.
bxc4 {[%clk 0:00:54.6]} 22... Be4 {[%clk 0:00:15.2]} 23. Rh3 {[%clk 0:00:50.1]}
23... Rxd2 {[%clk 0:00:09.2]} 24. Re1 {[%clk 0:00:50.6]} 24... Re2 {[%clk
0:00:07.8]} 25. Re3 {[%clk 0:00:37.3]} 25... Rxe1 {[%clk 0:00:05.5]} 26. Rxe1
{[%clk 0:00:38.2]} 26... f5 {[%clk 0:00:05.6]} 27. f3 {[%clk 0:00:31.7]} 27...
d2 {[%clk 0:00:06.1]} 28. fxe4 {[%clk 0:00:10.6]} 28... dxe1=Q {[%clk
0:00:04.9]} 29. Qxe1 {[%clk 0:00:11.5]} 29... Qe7 {[%clk 0:00:03.7]} 30. e5
{[%clk 0:00:09.1]} 30... Qc5+ {[%clk 0:00:03.6]} 31. Kh1 {[%clk 0:00:09.2]}
31... Qxc4 {[%clk 0:00:04.2]} 32. e6 {[%clk 0:00:09.3]} 32... Kd8 {[%clk
0:00:04.9]} 33. Qe5 {[%clk 0:00:05.4]} 33... Qc1+ {[%clk 0:00:04]} 34. Kh2
{[%clk 0:00:05.6]} 34... Qh6+ {[%clk 0:00:04.9]} 35. Kg1 {[%clk 0:00:04.6]}
35... Ke7 {[%clk 0:00:05.8]} 36. Qxf5 {[%clk 0:00:02]} 36... Qe3+ {[%clk
0:00:04.2]} 37. Kh2 {[%clk 0:00:01.5]} 37... Qh6+ {[%clk 0:00:03.8]} 38. Kg1
{[%clk 0:00:01.4]} 38... Qxe6 {[%clk 0:00:04.7]} 39. Qxh7 {[%clk 0:00:01.2]}
39... Qf6 {[%clk 0:00:05.2]} 40. Kh2 {[%clk 0:00:01.5]} 40... Qe5+ {[%clk
0:00:04.8]} 41. Kh3 {[%clk 0:00:01.5]} 41... b6 {[%clk 0:00:04.9]} 42. g3 {[%clk
0:00:01.7]} 42... Kd6 {[%clk 0:00:05.4]} 43. Kg2 {[%clk 0:00:02]} 43... a5
{[%clk 0:00:05.4]} 44. Qb1 {[%clk 0:00:02.5]} 44... Kc5 {[%clk 0:00:05.7]} 45.
Qc2+ {[%clk 0:00:02.8]} 45... Kb5 {[%clk 0:00:06.3]} 46. Qb3+ {[%clk 0:00:03.2]}
46... Kc5 {[%clk 0:00:05.9]} 47. Qc2+ {[%clk 0:00:03.4]} 47... Kd6 {[%clk
0:00:06.3]} 48. Qb1 {[%clk 0:00:02.9]} 48... Qd5+ {[%clk 0:00:06.4]} 49. Kh3
{[%clk 0:00:02.9]} 49... b5 {[%clk 0:00:07.3]} 50. Qg6+ {[%clk 0:00:02.8]} 50...
Qe6+ {[%clk 0:00:07.6]} 51. Qg4 {[%clk 0:00:03.2]} 51... a4 {[%clk 0:00:06.5]}
52. Kh4 {[%clk 0:00:03.1]} 52... Qxg4+ {[%clk 0:00:06.5]} 53. Kxg4 {[%clk
0:00:04]} 53... b4 {[%clk 0:00:07.1]} 54. Kf5 {[%clk 0:00:03]} 54... b3 {[%clk
0:00:07.6]} 55. axb3 {[%clk 0:00:03.5]} 55... axb3 {[%clk 0:00:08.4]} 56. Kg6
{[%clk 0:00:03.6]} 56... b2 {[%clk 0:00:08.8]} 57. g4 {[%clk 0:00:04.5]} 57...
b1=Q+ {[%clk 0:00:09.7]} 58. Kg5 {[%clk 0:00:04.7]} 58... Ke6 {[%clk 0:00:09.5]}
59. Kh5 {[%clk 0:00:04.6]} 59... Kf6 {[%clk 0:00:09.8]} 60. Kh4 {[%clk
0:00:03.7]} 60... g5+ {[%clk 0:00:09.5]} 61. Kg3 {[%clk 0:00:03]} 61... Qd3+
{[%clk 0:00:09.4]} 62. Kf2 {[%clk 0:00:02.8]} 62... Ke5 {[%clk 0:00:10.3]} 63.
Kg2 {[%clk 0:00:01.6]} 63... Kf4 {[%clk 0:00:11.2]} 0-1

[Event "*** Titled Tuesday Blitz"]
[Site "Chess.com"]
[Date "2020.11.03"]
[Round "8"]
[White "lamomiablanca"]
[Black "FontVella8"]
[Result "0-1"]
[WhiteElo "2291"]
[BlackElo "2487"]
[TimeControl "180+1"]
[EndTime "11:33:38 PST"]
[Termination "FontVella8 won by resignation"]

1. e4 {[%clk 0:03:00.9]} 1... c6 {[%clk 0:02:59.4]} 2. d4 {[%clk 0:03:00.4]}
2... d5 {[%clk 0:03:00]} 3. Nc3 {[%clk 0:02:59.8]} 3... dxe4 {[%clk 0:03:00.2]}
4. Nxe4 {[%clk 0:03:00.4]} 4... Nf6 {[%clk 0:03:01.1]} 5. Nxf6+ {[%clk
0:02:58.8]} 5... exf6 {[%clk 0:03:02]} 6. Nf3 {[%clk 0:02:59.3]} 6... Bd6 {[%clk
0:03:02.6]} 7. Be2 {[%clk 0:02:58.4]} 7... O-O {[%clk 0:03:03.1]} 8. O-O {[%clk
0:02:58.7]} 8... Bg4 {[%clk 0:03:02.1]} 9. h3 {[%clk 0:02:55.5]} 9... Bh5 {[%clk
0:03:01.9]} 10. c4 {[%clk 0:02:51.8]} 10... Nd7 {[%clk 0:03:01.7]} 11. Be3
{[%clk 0:02:50.8]} 11... Qc7 {[%clk 0:03:00.7]} 12. Qd2 {[%clk 0:02:38.8]} 12...
Rfe8 {[%clk 0:02:54.5]} 13. Rfe1 {[%clk 0:02:35.3]} 13... Rad8 {[%clk
0:02:49.9]} 14. Nh4 {[%clk 0:02:26.3]} 14... Bxe2 {[%clk 0:02:47]} 15. Rxe2
{[%clk 0:02:26.2]} 15... g6 {[%clk 0:02:30]} 16. Nf3 {[%clk 0:02:22.8]} 16... c5
{[%clk 0:02:25.5]} 17. d5 {[%clk 0:02:17.1]} 17... Ne5 {[%clk 0:02:25.1]} 18.
Nxe5 {[%clk 0:02:12.9]} 18... fxe5 {[%clk 0:02:25.1]} 19. Bg5 {[%clk 0:02:08.6]}
19... Rd7 {[%clk 0:02:19.6]} 20. Bf6 {[%clk 0:02:08.4]} 20... e4 {[%clk
0:02:10.5]} 21. Qh6 {[%clk 0:01:41.6]} 21... Bf8 {[%clk 0:02:10]} 22. Qh4 {[%clk
0:01:41.7]} 22... Qd6 {[%clk 0:01:56.9]} 23. Rae1 {[%clk 0:01:39.4]} 23... h6
{[%clk 0:01:45.9]} 24. Rxe4 {[%clk 0:01:29.9]} 24... Rxe4 {[%clk 0:01:44.6]} 25.
Rxe4 {[%clk 0:01:30.8]} 25... g5 {[%clk 0:01:38.8]} 26. Qg4 {[%clk 0:01:29.1]}
26... Rc7 {[%clk 0:01:23.1]} 27. Be5 {[%clk 0:01:21.7]} 27... Qg6 {[%clk
0:01:17.7]} 28. Bxc7 {[%clk 0:01:10.1]} 28... f5 {[%clk 0:01:17.8]} 29. Re6
{[%clk 0:01:08.5]} 29... Qxe6 {[%clk 0:01:17.3]} 30. dxe6 {[%clk 0:01:08.9]}
30... fxg4 {[%clk 0:01:17.6]} 31. Bd8 {[%clk 0:01:09.3]} 31... Bd6 {[%clk
0:01:15.5]} 32. hxg4 {[%clk 0:01:02.9]} 32... Be5 {[%clk 0:01:12.9]} 33. b3
{[%clk 0:00:59.6]} 33... Kf8 {[%clk 0:01:13.2]} 34. g3 {[%clk 0:00:44.9]} 34...
Ke8 {[%clk 0:01:12.8]} 35. e7 {[%clk 0:00:45.3]} 35... Bd6 {[%clk 0:01:07.1]}
36. Kg2 {[%clk 0:00:41.2]} 36... Bxe7 {[%clk 0:00:47.7]} 37. Bxe7 {[%clk
0:00:40.3]} 37... Kxe7 {[%clk 0:00:48.6]} 38. f4 {[%clk 0:00:40.2]} 38... Ke6
{[%clk 0:00:46]} 39. Kf3 {[%clk 0:00:39.5]} 39... Kf6 {[%clk 0:00:43.8]} 40. Ke4
{[%clk 0:00:38.8]} 40... Ke6 {[%clk 0:00:44.3]} 41. a3 {[%clk 0:00:25.2]} 41...
b6 {[%clk 0:00:38]} 42. b4 {[%clk 0:00:24.4]} 42... a6 {[%clk 0:00:37.8]} 43.
bxc5 {[%clk 0:00:22.6]} 43... bxc5 {[%clk 0:00:37.7]} 44. a4 {[%clk 0:00:23]}
44... a5 {[%clk 0:00:37.5]} 45. f5+ {[%clk 0:00:22.2]} 45... Kd6 {[%clk
0:00:27.7]} 46. f6 {[%clk 0:00:22.2]} 46... Ke6 {[%clk 0:00:28.4]} 47. f7 {[%clk
0:00:22.7]} 47... Kxf7 {[%clk 0:00:29]} 48. Kd5 {[%clk 0:00:22.9]} 48... Kf6
{[%clk 0:00:29.1]} 49. Kxc5 {[%clk 0:00:22.8]} 49... Ke5 {[%clk 0:00:30]} 50.
Kb5 {[%clk 0:00:17.1]} 50... Ke4 {[%clk 0:00:30.9]} 51. c5 {[%clk 0:00:17.3]}
51... Kf3 {[%clk 0:00:31.6]} 52. c6 {[%clk 0:00:17.6]} 52... Kxg4 {[%clk
0:00:32.5]} 53. c7 {[%clk 0:00:17.8]} 53... Kxg3 {[%clk 0:00:33.4]} 54. c8=Q
{[%clk 0:00:18]} 54... h5 {[%clk 0:00:34.3]} 55. Qf5 {[%clk 0:00:16.6]} 55...
Kh4 {[%clk 0:00:34.6]} 56. Kxa5 {[%clk 0:00:15.8]} 56... g4 {[%clk 0:00:34.9]}
57. Qf2+ {[%clk 0:00:07.9]} 57... g3 {[%clk 0:00:32.1]} 58. Qg2 {[%clk
0:00:07.2]} 58... Kg4 {[%clk 0:00:32.4]} 59. Kb4 {[%clk 0:00:06.8]} 59... h4
{[%clk 0:00:32.9]} 60. Kc3 {[%clk 0:00:06.3]} 60... h3 {[%clk 0:00:33.2]} 61.
Qe4+ {[%clk 0:00:06.8]} 61... Kg5 {[%clk 0:00:33.2]} 62. Kd3 {[%clk 0:00:05.3]}
62... g2 {[%clk 0:00:32.4]} 63. Qe3+ {[%clk 0:00:05.8]} 63... Kg4 {[%clk
0:00:33]} 64. Qe2+ {[%clk 0:00:04.3]} 64... Kg3 {[%clk 0:00:33.2]} 65. Qe3+
{[%clk 0:00:04.7]} 65... Kh2 {[%clk 0:00:33.2]} 66. a5 {[%clk 0:00:03.5]} 66...
g1=Q {[%clk 0:00:32.5]} 67. Qe7 {[%clk 0:00:01.4]} 67... Qd1+ {[%clk 0:00:28.9]}
68. Kc4 {[%clk 0:00:02.3]} 68... Qc2+ {[%clk 0:00:28.8]} 69. Kd5 {[%clk
0:00:03.2]} 69... Qd2+ {[%clk 0:00:26.4]} 70. Kc6 {[%clk 0:00:03.7]} 70... Qxa5
{[%clk 0:00:26.2]} 71. Qe2+ {[%clk 0:00:03]} 71... Kg1 {[%clk 0:00:25.3]} 72.
Qe1+ {[%clk 0:00:03.2]} 72... Qxe1 {[%clk 0:00:24.5]} 0-1

[Event "*** Titled Tuesday Blitz"]
[Site "Chess.com"]
[Date "2020.11.03"]
[Round "8"]
[White "AntonovaNadezhda"]
[Black "VinzentSpitzl"]
[Result "1-0"]
[WhiteElo "2134"]
[BlackElo "2306"]
[TimeControl "180+1"]
[EndTime "11:33:38 PST"]
[Termination "AntonovaNadezhda won on time"]

1. d4 {[%clk 0:03:00.9]} 1... f5 {[%clk 0:02:57.9]} 2. Nf3 {[%clk 0:03:00.2]}
2... Nf6 {[%clk 0:02:55.7]} 3. g3 {[%clk 0:02:57.9]} 3... g6 {[%clk 0:02:56]} 4.
Bg2 {[%clk 0:02:58.3]} 4... Bg7 {[%clk 0:02:56.5]} 5. O-O {[%clk 0:02:58.8]}
5... O-O {[%clk 0:02:57.1]} 6. c4 {[%clk 0:02:58.8]} 6... d6 {[%clk 0:02:57.7]}
7. Nc3 {[%clk 0:02:58.6]} 7... c6 {[%clk 0:02:57.3]} 8. Re1 {[%clk 0:02:58.6]}
8... Qc7 {[%clk 0:02:44.5]} 9. d5 {[%clk 0:02:54.1]} 9... e5 {[%clk 0:02:40.5]}
10. e4 {[%clk 0:02:49.6]} 10... fxe4 {[%clk 0:02:36.1]} 11. Nxe4 {[%clk
0:02:49.2]} 11... Nxe4 {[%clk 0:02:36.7]} 12. Rxe4 {[%clk 0:02:48.7]} 12... Bf5
{[%clk 0:02:37]} 13. Re1 {[%clk 0:02:48.2]} 13... Nd7 {[%clk 0:02:37.3]} 14. Nh4
{[%clk 0:02:45.5]} 14... a5 {[%clk 0:02:24.8]} 15. Nxf5 {[%clk 0:02:44.2]} 15...
gxf5 {[%clk 0:02:22]} 16. dxc6 {[%clk 0:02:32.4]} 16... bxc6 {[%clk 0:02:22.9]}
17. Qa4 {[%clk 0:02:31.9]} 17... e4 {[%clk 0:02:11.2]} 18. Bf4 {[%clk
0:02:23.4]} 18... Nc5 {[%clk 0:02:06.8]} 19. Qc2 {[%clk 0:02:15.1]} 19... Nd3
{[%clk 0:02:04.4]} 20. Red1 {[%clk 0:02:08.6]} 20... Nxf4 {[%clk 0:01:40.3]} 21.
gxf4 {[%clk 0:02:08]} 21... a4 {[%clk 0:01:38.4]} 22. Rab1 {[%clk 0:01:56.5]}
22... Kh8 {[%clk 0:01:35.7]} 23. Kh1 {[%clk 0:01:53.1]} 23... Bh6 {[%clk
0:00:56]} 24. Qd2 {[%clk 0:01:50.5]} 24... d5 {[%clk 0:00:52]} 25. cxd5 {[%clk
0:01:48.3]} 25... Bxf4 {[%clk 0:00:51.6]} 26. d6 {[%clk 0:01:44.1]} 26... Bxd2
{[%clk 0:00:46.4]} 27. dxc7 {[%clk 0:01:43.8]} 27... Bf4 {[%clk 0:00:45.4]} 28.
Rd7 {[%clk 0:01:43.2]} 28... Rac8 {[%clk 0:00:45.2]} 29. Bh3 {[%clk 0:01:30.3]}
29... Rxc7 {[%clk 0:00:43.5]} 30. Rxc7 {[%clk 0:01:24.4]} 30... Bxc7 {[%clk
0:00:44.4]} 31. Rc1 {[%clk 0:01:24.3]} 31... Rf6 {[%clk 0:00:40.2]} 32. Rc4
{[%clk 0:01:21.8]} 32... Be5 {[%clk 0:00:27.9]} 33. Rxa4 {[%clk 0:01:09.2]}
33... Bxb2 {[%clk 0:00:26.3]} 34. Rc4 {[%clk 0:01:08.6]} 34... Kg7 {[%clk
0:00:19]} 35. a4 {[%clk 0:01:06.9]} 35... Kg6 {[%clk 0:00:11.9]} 36. Kg2 {[%clk
0:00:59.4]} 36... Kg5 {[%clk 0:00:11.6]} 37. Kf1 {[%clk 0:00:48.5]} 37... Kf4
{[%clk 0:00:11.1]} 38. Ke2 {[%clk 0:00:48.4]} 38... Rd6 {[%clk 0:00:07.1]} 39.
Rc5 {[%clk 0:00:45.8]} 39... Rd5 {[%clk 0:00:07.1]} 40. Rxc6 {[%clk 0:00:38.3]}
40... Ra5 {[%clk 0:00:07.1]} 41. Rc4 {[%clk 0:00:37.5]} 41... Ke5 {[%clk
0:00:07.3]} 42. f3 {[%clk 0:00:30.1]} 42... Bd4 {[%clk 0:00:06.5]} 43. fxe4
{[%clk 0:00:25.7]} 43... fxe4 {[%clk 0:00:07.4]} 44. Bd7 {[%clk 0:00:21.8]}
44... Kd5 {[%clk 0:00:06.7]} 45. Bb5 {[%clk 0:00:15.4]} 45... Ra7 {[%clk
0:00:02.6]} 46. Rc8 {[%clk 0:00:13.4]} 46... Be5 {[%clk 0:00:01.8]} 47. Bc6+
{[%clk 0:00:11.7]} 47... Kd4 {[%clk 0:00:01.9]} 48. Bb5 {[%clk 0:00:11.7]} 48...
Rg7 {[%clk 0:00:01.3]} 49. Rc4+ {[%clk 0:00:11.6]} 49... Kd5 {[%clk 0:00:01.5]}
50. Rc8 {[%clk 0:00:09.4]} 50... Ke6 {[%clk 0:00:01.8]} 51. Re8+ {[%clk
0:00:08.2]} 51... Kf5 {[%clk 0:00:02.3]} 52. Rf8+ {[%clk 0:00:08.3]} 52... Bf6
{[%clk 0:00:02.7]} 53. Re8 {[%clk 0:00:07.9]} 53... Be7 {[%clk 0:00:02.3]} 54.
Bd7+ {[%clk 0:00:06.3]} 54... Kf4 {[%clk 0:00:02.6]} 55. Bc6 {[%clk 0:00:06.1]}
55... Rg2+ {[%clk 0:00:02.8]} 56. Kf1 {[%clk 0:00:06.4]} 56... Rg7 {[%clk
0:00:02.3]} 57. Ke2 {[%clk 0:00:05.6]} 57... Rf7 {[%clk 0:00:01.6]} 58. Rg8
{[%clk 0:00:02.4]} 58... e3 {[%clk 0:00:01.9]} 59. Rg3 {[%clk 0:00:01.9]} 59...
Bc5 {[%clk 0:00:01.9]} 60. Rf3+ {[%clk 0:00:01.8]} 1-0

[Event "*** Titled Tuesday Blitz"]
[Site "Chess.com"]
[Date "2020.11.03"]
[Round "8"]
[White "Jenia84"]
[Black "Misticpikachu"]
[Result "1-0"]
[WhiteElo "2330"]
[BlackElo "2480"]
[TimeControl "180+1"]
[EndTime "11:33:47 PST"]
[Termination "Jenia84 won by checkmate"]

1. Nf3 {[%clk 0:03:00.9]} 1... d5 {[%clk 0:02:57.3]} 2. b3 {[%clk 0:03:00.2]}
2... Nf6 {[%clk 0:02:56.5]} 3. Bb2 {[%clk 0:03:00.1]} 3... e6 {[%clk 0:02:57.1]}
4. e3 {[%clk 0:02:59.8]} 4... Be7 {[%clk 0:02:57.5]} 5. Be2 {[%clk 0:03:00.1]}
5... O-O {[%clk 0:02:58]} 6. O-O {[%clk 0:03:00.2]} 6... c5 {[%clk 0:02:55.8]}
7. c4 {[%clk 0:02:58.1]} 7... Nc6 {[%clk 0:02:53.7]} 8. cxd5 {[%clk 0:02:56.2]}
8... Nxd5 {[%clk 0:02:50.6]} 9. d4 {[%clk 0:02:56]} 9... cxd4 {[%clk 0:02:48.2]}
10. Nxd4 {[%clk 0:02:55.6]} 10... Nxd4 {[%clk 0:02:48.5]} 11. Bxd4 {[%clk
0:02:54.1]} 11... Bf6 {[%clk 0:02:47.7]} 12. Bf3 {[%clk 0:02:39.8]} 12... b6
{[%clk 0:02:47.3]} 13. Bxf6 {[%clk 0:02:22.2]} 13... Qxf6 {[%clk 0:02:45.5]} 14.
Nd2 {[%clk 0:02:04.4]} 14... Bb7 {[%clk 0:02:41.5]} 15. Rc1 {[%clk 0:02:03.3]}
15... Rac8 {[%clk 0:02:33.5]} 16. Ne4 {[%clk 0:01:59.5]} 16... Qe7 {[%clk
0:02:21.2]} 17. Qd2 {[%clk 0:01:52.2]} 17... Rfd8 {[%clk 0:02:10.2]} 18. Rxc8
{[%clk 0:01:50.1]} 18... Rxc8 {[%clk 0:02:06.5]} 19. Rc1 {[%clk 0:01:48.6]}
19... h6 {[%clk 0:01:57.4]} 20. h3 {[%clk 0:01:37.4]} 20... Rd8 {[%clk
0:01:34.9]} 21. Rd1 {[%clk 0:01:34.3]} 21... Rc8 {[%clk 0:01:31.7]} 22. Rc1
{[%clk 0:01:27.8]} 22... Rxc1+ {[%clk 0:01:28.8]} 23. Qxc1 {[%clk 0:01:27.2]}
23... Nb4 {[%clk 0:00:58]} 24. Qd2 {[%clk 0:01:08.8]} 24... a5 {[%clk
0:00:46.8]} 25. Qd4 {[%clk 0:00:49]} 25... Qc7 {[%clk 0:00:39]} 26. a3 {[%clk
0:00:35.4]} 26... Nc2 {[%clk 0:00:33.9]} 27. Qb2 {[%clk 0:00:30.1]} 27... Ne1
{[%clk 0:00:28.7]} 28. Qd2 {[%clk 0:00:24]} 28... Nxf3+ {[%clk 0:00:16.2]} 29.
gxf3 {[%clk 0:00:24.9]} 29... Bd5 {[%clk 0:00:16.3]} 30. Qd3 {[%clk 0:00:17.6]}
30... Qc1+ {[%clk 0:00:14.4]} 31. Kg2 {[%clk 0:00:17.9]} 31... Qxa3 {[%clk
0:00:14.4]} 32. Qb5 {[%clk 0:00:17.9]} 32... Bxe4 {[%clk 0:00:10.3]} 33. fxe4
{[%clk 0:00:17.5]} 33... Qb4 {[%clk 0:00:03.8]} 34. Qe8+ {[%clk 0:00:16.3]}
34... Qf8 {[%clk 0:00:03.9]} 35. Qc6 {[%clk 0:00:14.5]} 35... Qb8 {[%clk
0:00:03.5]} 36. f4 {[%clk 0:00:13.6]} 36... b5 {[%clk 0:00:03.8]} 37. Qa6 {[%clk
0:00:13.3]} 37... Qc7 {[%clk 0:00:02.2]} 38. Qxb5 {[%clk 0:00:12.1]} 38... Qc2+
{[%clk 0:00:02.8]} 39. Kf3 {[%clk 0:00:11.8]} 39... Qc3 {[%clk 0:00:03.3]} 40.
Qe8+ {[%clk 0:00:10.7]} 40... Kh7 {[%clk 0:00:03.5]} 41. Qxf7 {[%clk 0:00:10.7]}
41... Qc1 {[%clk 0:00:03.2]} 42. f5 {[%clk 0:00:10.2]} 42... Qf1+ {[%clk
0:00:03.4]} 43. Kg3 {[%clk 0:00:10.5]} 43... Qg1+ {[%clk 0:00:03.2]} 44. Kf4
{[%clk 0:00:10.2]} 44... Qf2+ {[%clk 0:00:03.4]} 45. Ke5 {[%clk 0:00:10]} 45...
Qxe3 {[%clk 0:00:02.9]} 46. Qg6+ {[%clk 0:00:09.4]} 46... Kg8 {[%clk 0:00:02.7]}
47. Qxe6+ {[%clk 0:00:08.9]} 47... Kh7 {[%clk 0:00:02.7]} 48. Qg6+ {[%clk
0:00:08.7]} 48... Kg8 {[%clk 0:00:02.7]} 49. Qe6+ {[%clk 0:00:08.6]} 49... Kh7
{[%clk 0:00:02.5]} 50. Qc4 {[%clk 0:00:08]} 50... Qg3+ {[%clk 0:00:02.4]} 51.
Ke6 {[%clk 0:00:08.1]} 51... Qb8 {[%clk 0:00:02.8]} 52. Qc6 {[%clk 0:00:07.4]}
52... Qg8+ {[%clk 0:00:02.9]} 53. Ke5 {[%clk 0:00:07.2]} 53... Qxb3 {[%clk
0:00:03.3]} 54. Qg6+ {[%clk 0:00:07.5]} 54... Kg8 {[%clk 0:00:03.3]} 55. Qe8+
{[%clk 0:00:06.8]} 55... Kh7 {[%clk 0:00:03.8]} 56. Qg6+ {[%clk 0:00:07.1]}
56... Kh8 {[%clk 0:00:04.3]} 57. Qe8+ {[%clk 0:00:06.5]} 57... Qg8 {[%clk
0:00:04.9]} 58. Qe6 {[%clk 0:00:05.5]} 58... Qxe6+ {[%clk 0:00:03.3]} 59. fxe6
{[%clk 0:00:05.4]} 59... Kg8 {[%clk 0:00:03.9]} 60. Kd6 {[%clk 0:00:04.4]} 60...
Kf8 {[%clk 0:00:04.4]} 61. Kd7 {[%clk 0:00:04.7]} 61... a4 {[%clk 0:00:02.6]}
62. e7+ {[%clk 0:00:05.6]} 62... Kf7 {[%clk 0:00:02.3]} 63. e8=Q+ {[%clk
0:00:06.5]} 63... Kf6 {[%clk 0:00:03.1]} 64. Qe6+ {[%clk 0:00:06.7]} 64... Kg5
{[%clk 0:00:04]} 65. Qd5+ {[%clk 0:00:07]} 65... Kh4 {[%clk 0:00:04]} 66. Qc4
{[%clk 0:00:07.5]} 66... a3 {[%clk 0:00:04]} 67. Qa4 {[%clk 0:00:08.4]} 67... a2
{[%clk 0:00:03.9]} 68. Qxa2 {[%clk 0:00:08.5]} 68... g5 {[%clk 0:00:04.8]} 69.
Qd5 {[%clk 0:00:08.1]} 69... Kh5 {[%clk 0:00:05.7]} 70. Qf5 {[%clk 0:00:07.5]}
70... Kh4 {[%clk 0:00:06.6]} 71. Qg4# {[%clk 0:00:07.7]} 1-0

[Event "*** Titled Tuesday Blitz"]
[Site "Chess.com"]
[Date "2020.11.03"]
[Round "8"]
[White "Atousa1"]
[Black "davidkalashian"]
[Result "0-1"]
[WhiteElo "2423"]
[BlackElo "2607"]
[TimeControl "180+1"]
[EndTime "11:33:50 PST"]
[Termination "davidkalashian won on time"]

1. e4 {[%clk 0:03:00.9]} 1... c6 {[%clk 0:02:59.2]} 2. d4 {[%clk 0:03:00.3]}
2... g6 {[%clk 0:03:00.1]} 3. Nc3 {[%clk 0:02:56.8]} 3... Bg7 {[%clk 0:03:00.4]}
4. Nf3 {[%clk 0:02:54.5]} 4... d6 {[%clk 0:02:58.3]} 5. a4 {[%clk 0:02:44.6]}
5... Nf6 {[%clk 0:02:56.5]} 6. Bd3 {[%clk 0:02:41.2]} 6... O-O {[%clk 0:02:56]}
7. O-O {[%clk 0:02:41.4]} 7... Nbd7 {[%clk 0:02:55]} 8. h3 {[%clk 0:02:35.9]}
8... e5 {[%clk 0:02:55.2]} 9. Be3 {[%clk 0:02:33.9]} 9... Re8 {[%clk 0:02:54.4]}
10. Re1 {[%clk 0:02:33]} 10... Qe7 {[%clk 0:02:52.6]} 11. a5 {[%clk 0:02:30.1]}
11... Nh5 {[%clk 0:02:50]} 12. Qd2 {[%clk 0:02:20.7]} 12... Nf8 {[%clk
0:02:48.8]} 13. Bg5 {[%clk 0:02:07.8]} 13... Qc7 {[%clk 0:02:46.1]} 14. Be3
{[%clk 0:01:57.1]} 14... Qe7 {[%clk 0:02:41]} 15. Bg5 {[%clk 0:01:56.9]} 15...
Qc7 {[%clk 0:02:40.5]} 16. Be3 {[%clk 0:01:56.8]} 16... Ne6 {[%clk 0:02:36.4]}
17. d5 {[%clk 0:01:56.1]} 17... Nd4 {[%clk 0:02:27.7]} 18. Be2 {[%clk
0:01:44.1]} 18... Nxe2+ {[%clk 0:02:14.4]} 19. Qxe2 {[%clk 0:01:38.1]} 19... Nf4
{[%clk 0:02:10.9]} 20. Bxf4 {[%clk 0:01:28.6]} 20... exf4 {[%clk 0:02:09.8]} 21.
dxc6 {[%clk 0:01:28.3]} 21... bxc6 {[%clk 0:02:07.2]} 22. Qd2 {[%clk 0:01:28.4]}
22... Rb8 {[%clk 0:01:58.8]} 23. Na4 {[%clk 0:01:15.6]} 23... Be5 {[%clk
0:01:19.1]} 24. Rad1 {[%clk 0:01:05.6]} 24... Be6 {[%clk 0:01:06]} 25. b3 {[%clk
0:01:02.2]} 25... Rb5 {[%clk 0:01:01.7]} 26. a6 {[%clk 0:00:51.4]} 26... Qa5
{[%clk 0:00:59.9]} 27. Nxe5 {[%clk 0:00:36.9]} 27... dxe5 {[%clk 0:00:54]} 28.
Qxa5 {[%clk 0:00:36.4]} 28... Rxa5 {[%clk 0:00:51.8]} 29. Rd6 {[%clk 0:00:33.1]}
29... Rc8 {[%clk 0:00:47]} 30. Red1 {[%clk 0:00:27.6]} 30... Kf8 {[%clk
0:00:42.8]} 31. Rd8+ {[%clk 0:00:25.7]} 31... Rxd8 {[%clk 0:00:41.7]} 32. Rxd8+
{[%clk 0:00:26.6]} 32... Ke7 {[%clk 0:00:42.3]} 33. Ra8 {[%clk 0:00:25]} 33...
Rxa6 {[%clk 0:00:41.8]} 34. g4 {[%clk 0:00:19.3]} 34... f5 {[%clk 0:00:24.3]}
35. f3 {[%clk 0:00:16.7]} 35... fxe4 {[%clk 0:00:22.4]} 36. fxe4 {[%clk
0:00:16.7]} 36... Ra5 {[%clk 0:00:19.9]} 37. Kf2 {[%clk 0:00:16.6]} 37... Bd7
{[%clk 0:00:19.3]} 38. Kf3 {[%clk 0:00:16.6]} 38... c5 {[%clk 0:00:19.5]} 39.
Nc3 {[%clk 0:00:16.7]} 39... Bc6 {[%clk 0:00:19.5]} 40. Rh8 {[%clk 0:00:15.9]}
40... Ra1 {[%clk 0:00:17.3]} 41. Rxh7+ {[%clk 0:00:15.6]} 41... Kf6 {[%clk
0:00:16.1]} 42. Rc7 {[%clk 0:00:15.5]} 42... Ba8 {[%clk 0:00:12.4]} 43. Rc8
{[%clk 0:00:15.8]} 43... Bb7 {[%clk 0:00:11.2]} 44. Rc7 {[%clk 0:00:16]} 44...
Ba6 {[%clk 0:00:10.9]} 45. Nd5+ {[%clk 0:00:14.7]} 45... Ke6 {[%clk 0:00:10.2]}
46. Rxc5 {[%clk 0:00:08.8]} 46... Rf1+ {[%clk 0:00:07.9]} 47. Kg2 {[%clk
0:00:07.7]} 47... Be2 {[%clk 0:00:08.8]} 48. Rc6+ {[%clk 0:00:05.4]} 48... Kf7
{[%clk 0:00:07.5]} 49. Rc7+ {[%clk 0:00:05.5]} 49... Ke6 {[%clk 0:00:06.6]} 50.
Rc6+ {[%clk 0:00:05.7]} 50... Kd7 {[%clk 0:00:06.3]} 51. Rc7+ {[%clk 0:00:05.6]}
51... Kd6 {[%clk 0:00:06.2]} 52. Rf7 {[%clk 0:00:05.8]} 52... f3+ {[%clk
0:00:05.4]} 53. Kg3 {[%clk 0:00:06.3]} 53... g5 {[%clk 0:00:06]} 54. Ne3 {[%clk
0:00:05.1]} 54... Rg1+ {[%clk 0:00:04.2]} 55. Kf2 {[%clk 0:00:05.2]} 55... Rh1
{[%clk 0:00:04.5]} 56. Rf6+ {[%clk 0:00:03.5]} 56... Ke7 {[%clk 0:00:03.7]} 57.
Rf5 {[%clk 0:00:04.4]} 57... Kd7 {[%clk 0:00:04.6]} 58. Rxe5 {[%clk 0:00:04.2]}
58... Rh2+ {[%clk 0:00:05.5]} 59. Ke1 {[%clk 0:00:03.7]} 59... Rh1+ {[%clk
0:00:05.6]} 60. Kf2 {[%clk 0:00:03.9]} 60... Rh2+ {[%clk 0:00:06.1]} 61. Ke1
{[%clk 0:00:04.2]} 61... Rxh3 {[%clk 0:00:06.4]} 62. Rxg5 {[%clk 0:00:03.5]}
62... Rh1+ {[%clk 0:00:05.8]} 63. Kf2 {[%clk 0:00:03.8]} 63... Rh2+ {[%clk
0:00:06]} 64. Ke1 {[%clk 0:00:04]} 64... Ba6 {[%clk 0:00:05.7]} 65. Rg7+ {[%clk
0:00:03.7]} 65... Ke8 {[%clk 0:00:05]} 66. Rg5 {[%clk 0:00:02.2]} 66... f2+
{[%clk 0:00:02.6]} 67. Kd1 {[%clk 0:00:01.5]} 67... f1=Q+ {[%clk 0:00:02.4]} 68.
Nxf1 {[%clk 0:00:01.1]} 68... Bxf1 {[%clk 0:00:03.3]} 69. Ra5 {[%clk 0:00:01.5]}
69... Kd7 {[%clk 0:00:03.7]} 0-1